Cogmind - Beta 10.2 @@@ ROGUE MODE // 2021.12.01 @ 20:55:11 Player: Chloroform Result: Destroyed by 4W-H4Y(z) with Zionite Laser-S Performance ------------- Evolutions (1) 500 Regions Visited (5) 1000 Robots Destroyed (58) 290 Value Destroyed (1561) 1561 Prototype IDs (6) 120 Alien Tech Used (0) 0 Bonus (198) 198 TOTAL SCORE: 3669 Bonus ------- High Alert Combat Kills 198 Cogmind --------- Core Integrity 0/400 Matter 278/300 Energy 58/100 System Corruption 0% Temperature Cool (45) Movement Core (400) Ox7 Location -7/Deep Caves Parts ------- > --- POWER (1) -------- (None) > --- PROPULSION (3) --- (None) > --- UTILITY (3) ------ Large Storage Unit Makeshift Transmission Jammer > --- WEAPON (2) ------- Makeshift Sword > --- INVENTORY (10) --- Ion Engine Aluminum Leg Makeshift Flight Unit Medium Storage Unit Weapon Shielding Makeshift Hacking Suite Greatsword Peak State ------------ > --- POWER ------------ Ion Engine > --- PROPULSION ------- Aluminum Leg Xenon Bombardment Thruster Makeshift Flight Unit > --- UTILITY ---------- Large Storage Unit Advanced Weight Redist. System Makeshift Transmission Jammer > --- WEAPON ----------- Barrage Gun Makeshift Sword > --- INVENTORY -------- Ion Engine Xenon Bombardment Thruster Makeshift Flight Unit Medium Storage Unit Weapon Shielding Makeshift Hacking Suite Greatsword [Rating: 27] Favorites ----------- Power Ion Engine Engine Ion Engine Propulsion Improved Aluminum Leg Leg Improved Aluminum Leg Wheel Wheel Flight Unit Xenon Bombardment Thruster Utility Large Storage Unit Device Advanced Weight Redist. System Storage Large Storage Unit Protection Improved Light Armor Plating Weapon EM Pulse Gun Energy Gun EM Pulse Gun Energy Cannon Advanced Beam Cannon Ballistic Gun Assault Rifle Launcher EMP Blaster Slashing Weapon Makeshift Sword Build | -11 -10 -9 -9 -7 -7 ------- Run | Scr Mat Mat Min Zio Dee Slots Evolved 2 | . . 2 . . . Power . | . . . . . . Propulsion 1 | . . 1 . . . Utility 1 | . . 1 . . . Weapon . | . . . . . . Parts Attached 55 | 6 10 30 . 6 3 Power 7 | 1 2 3 . 1 . Engine 7 | 1 2 3 . 1 . Core . | . . . . . . Reactor . | . . . . . . Propulsion 15 | 2 4 6 . . 3 Treads . | . . . . . . Leg 10 | . 4 6 . . . Wheel 2 | 2 . . . . . Hover . | . . . . . . Flight 3 | . . . . . 3 Utility 12 | 1 1 7 . 3 . Device 6 | 1 . 3 . 2 . Storage 3 | . 1 2 . . . Processor . | . . . . . . Hackware . | . . . . . . Protection 3 | . . 2 . 1 . Artifact . | . . . . . . Weapon 21 | 2 3 14 . 2 . Energy Gun 5 | . 1 4 . . . Energy Cannon 2 | . 1 1 . . . Ballistic Gun 9 | 2 1 5 . 1 . Ballistic Cannon . | . . . . . . Launcher 4 | . . 4 . . . Special Weapon . | . . . . . . Impact Weapon . | . . . . . . Slashing Weapon 1 | . . . . 1 . Piercing Weapon . | . . . . . . Special Melee Weapon . | . . . . . . Unidentified Prototypes 2 | . . 2 . . . Parts Lost 14 | . 3 3 . . 8 Power 2 | . 1 . . . 1 Propulsion 8 | . 1 2 . . 5 Utility 2 | . . 1 . . 1 Weapon 2 | . 1 . . . 1 Highest Loss Streak 8 | . 3 1 . . 8 Average Slot Usage (%) 98 | . 94 98 100 99 96 Engine 10 | . 9 11 11 11 10 Leg 29 | . 20 32 33 33 30 Wheel 1 | . 7 . . . . Device 13 | . 14 13 . 11 21 Storage 12 | . 13 14 11 11 11 Protection 5 | . . 4 22 10 . Energy Gun 5 | . 8 9 . . . Ballistic Gun 12 | . 18 6 22 15 10 Launcher 1 | . . 3 . . . Slashing Weapon 2 | . . . . 6 11 Naked Turns . | . . . . . . Heaviest Build 37 | 7 26 37 33 33 31 Greatest Support 54 | 20 26 54 33 42 33 Greatest Overweight (x) 7 | . 1 1 . . 7 Average Overweight (x) . | . . . . . . Largest Inventory Capacity 14 | 4 10 14 10 10 10 Average Capacity 10 | 4 9 11 10 10 10 Most Carried 14 | 4 10 14 10 10 10 Average Carried 9 | 2 8 10 10 9 9 Final Capacity 10 | 4 10 10 10 10 10 Final Carried 10 | 4 10 10 10 10 8 Class Distribution -------------------- 100% | Mutant Dominant Class ---------------- Mutant | -10/Materials Mutant | -9/Materials Mutant | -9/Mines Mutant | -7/Zion Mutant | -7/Deep Caves Resources | -11 -10 -9 -9 -7 -7 ----------- Run | Scr Mat Mat Min Zio Dee Matter Collected 1261 | 296 150 777 . 38 . Remotely . | . . . . . . Salvage Created 1780 | 58 157 1565 . . . Parts 137 | 4 14 119 . . . Haulers Intercepted . | . . . . . . Recyclers Shooed 6 | . 2 4 . . . Parts Field Recycled . | . . . . . . Retrieved Matter . | . . . . . . Parts Self-Destructed . | . . . . . . Prevented . | . . . . . . Kills | -11 -10 -9 -9 -7 -7 ------- Run | Scr Mat Mat Min Zio Dee Combat Hostiles Destroyed 44 | 1 4 39 . . . Guns 24 | 1 3 20 . . . Cannons 8 | . . 8 . . . AOE 12 | . 1 11 . . . Classes Destroyed 8 | 2 4 2 . . . Worker 3 | 1 . 2 . . . Tunneler 2 | . 1 1 . . . Recycler 4 | . 1 3 . . . Operator 1 | . 1 . . . . Watcher 4 | . . 4 . . . Swarmer 12 | . 3 9 . . . Grunt 26 | 1 1 24 . . . Sentry 6 | . . 6 . . . Best Kill Streak 7 | 2 3 7 . . . Combat Bots Only 5 | 1 2 5 . . . Max Kills in Single Turn 3 | 1 1 3 . . . Gunslinging . | . . . . . . Exploded 2 | . 1 2 . . . Melee . | . . . . . . Uniques/NPCs Destroyed . | . . . . . . Combat | -11 -10 -9 -9 -7 -7 -------- Run | Scr Mat Mat Min Zio Dee Damage Taken 2825 | 43 354 1413 . . 1015 Core 468 | 23 26 152 . . 267 Absorbed by Shields 15 | . . 15 . . . Core Remaining (%) 85 | 90 80 . . . . Volleys Fired 160 | 9 30 121 . . . Largest 2 | 2 2 2 . . . Hottest 98 | 40 80 98 . . . Shots Fired 254 | 18 51 185 . . . Gun 199 | 18 47 134 . . . Cannon 34 | . 4 30 . . . Launcher 21 | . . 21 . . . Special . | . . . . . . Kinetic 123 | 18 31 74 . . . Thermal 49 | . 4 45 . . . Explosive 14 | . . 14 . . . Electromagnetic 68 | . 16 52 . . . Robot Hit Streak 10 | 4 4 10 . . . Robot Miss Streak 4 | 2 3 4 . . . Penetration Max . | . . . . . . Secondary Targets 2 | . . 2 . . . Max Gunslinging Chain 1 | . . 1 . . . Shots Hit Robots 156 | 11 25 120 . . . Core Hits 91 | 3 7 81 . . . Critical Hits 2 | . . 2 . . . Critical Kills 1 | . . 1 . . . Critical Parts Destroyed 1 | . . 1 . . . Melee Attacks . | . . . . . . Impact . | . . . . . . Slashing . | . . . . . . Piercing . | . . . . . . Sneak Attacks . | . . . . . . Combat Hostiles . | . . . . . . Follow-up Attacks . | . . . . . . Damage Inflicted 3070 | 113 352 2605 . . . Guns 1549 | 113 335 1101 . . . Cannons 262 | . 17 245 . . . Explosions 1259 | . . 1259 . . . Melee . | . . . . . . Ramming . | . . . . . . Kinetic 868 | 113 213 542 . . . Thermal 808 | . 17 791 . . . Explosive 669 | . . 669 . . . Electromagnetic 725 | . 122 603 . . . Impact . | . . . . . . Slashing . | . . . . . . Piercing . | . . . . . . Highest Corruption 5 | . 5 . . . . Average Corruption 4 | . 4 . . . . Corruption Purged . | . . . . . . Effects 25 | . 25 . . . . Message Errors 5 | . 5 . . . . Matter Fused 6 | . 6 . . . . Heat Flow Errors 2 | . 2 . . . . Energy Discharges 1 | . 1 . . . . Data Loss (minor) 3 | . 3 . . . . Misfires 2 | . 2 . . . . Targeting Errors 5 | . 5 . . . . Weapon Failures 1 | . 1 . . . . Overload Shots . | . . . . . . Overflow Damage 128 | . . 128 . . . Projectiles . | . . . . . . Explosions 128 | . . 128 . . . Melee . | . . . . . . Knockbacks . | . . . . . . Impact . | . . . . . . Kinetic . | . . . . . . Secondary . | . . . . . . Self-Inflicted Damage 124 | . . 124 . . . Shots 6 | . . 6 . . . Rammed . | . . . . . . Targets Rammed . | . . . . . . Kicked . | . . . . . . Crushed . | . . . . . . Highest Temperature 153 | 12 116 153 . . 28 Average Temperature 33 | 8 66 32 . . 18 Received Heat Transfer 851 | 24 99 422 . . 306 Siege Activations . | . . . . . . Robots Corrupted . | . . . . . . Combat Hostiles . | . . . . . . Parts Fried 2 | . . 2 . . . Impact Corruptions . | . . . . . . Robots Melted . | . . . . . . Combat Hostiles . | . . . . . . Parts Melted . | . . . . . . Heat Transferred 1081 | . 37 1044 . . . Parts Sabotaged . | . . . . . . Parts Stolen . | . . . . . . Parts Stripped . | . . . . . . Power Chain Reactions 1 | . . 1 . . . Missiles Intercepted . | . . . . . . Alert | -11 -10 -9 -9 -7 -7 ------- Run | Scr Mat Mat Min Zio Dee Peak Influence 831 | 25 120 831 324 . . Initial 324 | . 16 . 324 . . Average 299 | 7 35 468 324 . . Maximum Alert Level 3 | . . 3 1 . . Low Security (%) 42 | 100 100 5 . . . Level 1 17 | . . 27 100 . . Level 2 34 | . . 57 . . . Level 3 5 | . . 9 . . . Level 4 . | . . . . . . Level 5 . | . . . . . . High Security . | . . . . . . Max Security . | . . . . . . Squads Dispatched 9 | . . 9 . . . Investigation 7 | . . 7 . . . Extermination . | . . . . . . Reinforcement 2 | . . 2 . . . Assault . | . . . . . . Garrison . | . . . . . . Intercept . | . . . . . . Construction Impeded 1 | . . 1 . . . Haulers Reinforced . | . . . . . . Stealth | -11 -10 -9 -9 -7 -7 --------- Run | Scr Mat Mat Min Zio Dee Distress Signals 2 | . . 2 . . . Communications Jammed . | . . . . . . Distress Signals . | . . . . . . Times Spotted 71 | 1 16 46 . . 8 Peak Tracking Total 8 | 1 4 5 . . 8 Tactical Retreats 6 | . 4 2 . . . Traps | -11 -10 -9 -9 -7 -7 ------- Run | Scr Mat Mat Min Zio Dee Traps Triggered 6 | . 5 1 . . . Indirectly . | . . . . . . Trap Hack Attempts . | . . . . . . Triggered . | . . . . . . Disarmed 6 | . . 6 . . . Reprogrammed 4 | . . 4 . . . Reused . | . . . . . . Traps Extracted . | . . . . . . Installed . | . . . . . . Triggered . | . . . . . . Machines | -11 -10 -9 -9 -7 -7 ---------- Run | Scr Mat Mat Min Zio Dee Machines Disabled 15 | . . 14 . . 1 Max in Single Turn 3 | . . 3 . . . Machines Sabotaged . | . . . . . . Garrisons Compromised . | . . . . . . Overloaded Fab Kills . | . . . . . . Fab Network Shutdowns . | . . . . . . Hacking | -11 -10 -9 -9 -7 -7 --------- Run | Scr Mat Mat Min Zio Dee Machines Accessed 15 | . 4 11 . . . Terminals 11 | . 4 7 . . . Fabricators . | . . . . . . Repair Stations 2 | . . 2 . . . Recycling Units 1 | . . 1 . . . Scanalyzers 1 | . . 1 . . . Garrison Access . | . . . . . . Total Hacks 52 | . 12 40 . . . Successful 34 | . 8 26 . . . Failed 18 | . 4 14 . . . Catastrophic 4 | . 1 3 . . . Database Lockouts . | . . . . . . Manual 26 | . . 1 . 25 . Terminals 39 | . 12 27 . . . Fabricators . | . . . . . . Repair Stations 4 | . . 4 . . . Recycling Units 6 | . . 6 . . . Scanalyzers 3 | . . 3 . . . Garrison Access . | . . . . . . Terminal Hacks 24 | . 8 16 . . . Record 9 | . 5 4 . . . Prototype ID Bank 2 | . 1 1 . . . Level Access Points 1 | . . 1 . . . Emergency Access Points 1 | . . 1 . . . Alert Level 1 | . 1 . . . . Unreport Threat 1 | . . 1 . . . Locate Traps 2 | . . 2 . . . Disarm Traps 2 | . . 2 . . . Reprogram Traps 1 | . . 1 . . . Transport Status 1 | . . 1 . . . Recall Investigation 1 | . . 1 . . . Recall Reinforcements 1 | . . 1 . . . Zone Layout 1 | . 1 . . . . Fabricator Hacks . | . . . . . . Repair Station Hacks 2 | . . 2 . . . Scan Component 1 | . . 1 . . . Repair 1 | . . 1 . . . Recycling Unit Hacks 6 | . . 6 . . . Recycle Component 2 | . . 2 . . . Process 2 | . . 2 . . . Report Inventory 1 | . . 1 . . . Retrieve Matter 1 | . . 1 . . . Scanalyzer 2 | . . 2 . . . Insert Component 1 | . . 1 . . . Analyze 1 | . . 1 . . . Garrison Access Hacks . | . . . . . . Unauthorized Hacks . | . . . . . . Terminals . | . . . . . . Fabricators . | . . . . . . Repair Stations . | . . . . . . Recycling Units . | . . . . . . Scanalyzers . | . . . . . . Garrison Access . | . . . . . . Data Cores Recovered . | . . . . . . Used . | . . . . . . Hacking Detections 14 | . 3 11 . . . Full Trace Events 10 | . 1 9 . . . Feedback Events . | . . . . . . Feedback Blocked . | . . . . . . Robot Schematics Acquired . | . . . . . . Robots Built . | . . . . . . Matter . | . . . . . . Time . | . . . . . . Total Robot Build Rating . | . . . . . . Part Schematics Acquired 1 | . . 1 . . . Parts Built . | . . . . . . Matter . | . . . . . . Time . | . . . . . . Total Part Build Rating . | . . . . . . Parts Repaired 1 | . . 1 . . . Time 32 | . . 32 . . . Parts Recycled 2 | . . 2 . . . Recycled Matter 5 | . . 5 . . . Retrieved Matter 4 | . . 4 . . . Retrieved Components . | . . . . . . Parts Scanalyzed 1 | . . 1 . . . Part Schematics Acquired 1 | . . 1 . . . Parts Damaged . | . . . . . . Bothacking | -11 -10 -9 -9 -7 -7 ------------ Run | Scr Mat Mat Min Zio Dee Used RIF Installer . | . . . . . . Robots Hacked . | . . . . . . Non-combat . | . . . . . . Combat . | . . . . . . Robot Hacks Applied . | . . . . . . Relay Couplers Released . | . . . . . . Robots Rewired . | . . . . . . Allies Hacked . | . . . . . . Hacks Repelled . | . . . . . . Allies | -11 -10 -9 -9 -7 -7 -------- Run | Scr Mat Mat Min Zio Dee Total Allies 2 | . . . . 2 . Largest Group 2 | . . . . 2 2 Highest-Rated Group 188 | . . . . 188 188 Highest-Rated Ally 94 | . . . . 94 94 Total Orders . | . . . . . . Ally Attacks 22 | . . . . . 22 Total Damage 554 | . . . . . 554 Kills 4 | . . . . . 4 Allies Corrupted . | . . . . . . Allies Melted . | . . . . . . Intel | -11 -10 -9 -9 -7 -7 ------- Run | Scr Mat Mat Min Zio Dee Robot Analysis Total . | . . . . . . Derelict Logs Recovered 1 | . . . . 1 . Drone Launches . | . . . . . . Drone Recoveries . | . . . . . . Exploration | -11 -10 -9 -9 -7 -7 ------------- Run | Scr Mat Mat Min Zio Dee Turns Passed 4060 | 124 885 1585 29 1276 161 Spaces Moved 2904 | 114 654 966 25 1015 130 Core 19 | 18 . . . . 1 Treads . | . . . . . . Legs 2552 | . 418 966 25 1015 128 Wheels 332 | 96 236 . . . . Hover . | . . . . . . Flight 1 | . . . . . 1 Fastest Speed 50 | 50 80 120 120 120 117 Average Speed 116 | 75 110 121 120 120 122 Slowest Speed 400 | 80 150 150 120 120 400 Overloaded Moves . | . . . . . . Propulsion Burnouts . | . . . . . . Robots Hopped . | . . . . . . Cave-ins Triggered . | . . . . . . Exploration Rate (%) 47 | 6 90 76 8 73 30 Regions Visited 5 Branch Regions 3 Pre-discovered Areas 2 | . . . . 2 . Known Exits Taken . | . . . . . . Unknown Exits Taken 5 | 1 1 1 1 1 . Scrap Searched 5 | . . . . 5 . Spaces Dug . | . . . . . . Terrain Destroyed 80 | . . 80 . . . Melee . | . . . . . . Projectile . | . . . . . . AOE 80 | . . 80 . . . Terrain Rammed . | . . . . . . Walls Destroyed . | . . . . . . Machines Disabled . | . . . . . . Actions | -11 -10 -9 -9 -7 -7 --------- Run | Scr Mat Mat Min Zio Dee Total 3334 | 133 767 1201 24 1076 133 Wait 121 | . 46 42 . 33 . Move 2899 | 113 653 965 24 1014 130 Hop . | . . . . . . Pick Up 54 | 5 16 23 . 10 . Fast Attach 12 | 5 2 3 . 2 . Attach 15 | 1 3 9 . . 2 Detach 2 | . 1 1 . . . Swap 28 | . 5 18 . 4 1 Drop 43 | . 11 19 . 13 . Fire 160 | 9 30 121 . . . Melee . | . . . . . . Ram . | . . . . . . Kick . | . . . . . . Crush . | . . . . . . Escape Stasis . | . . . . . . Rewire . | . . . . . . Trap . | . . . . . . Miscellaneous . | . . . . . . Route ------- -11/Scrapyard -10/Materials (discovered 4 exits: *Mat x3 / [*Min]) -9/Materials (discovered 5 exits: *Mat x3 / [*Min x2]) -9/Mines -7/Zion -7/Deep Caves History --------- Turn | Location | Event 2 | -11/Scrapyard | Met Revision 17 61 | -11/Scrapyard | Discovered new exit (range 8) 125 | -11/Scrapyard | Entered Materials 152 | -10/Materials | Discovered new exit (range 7) 178 | -10/Materials | Discovered new exit (range 15) 292 | -10/Materials | Discovered new exit (range 6) 306 | -10/Materials | Build established: Mutant 412 | -10/Materials | Lost 3 parts (1p1n1w) 420 | -10/Materials | Discovered new exit (range 10) 1010 | -10/Materials | Entered another Materials area 1010 | -9/Materials | Evolved 2 slots: Propulsion x1, Utility x1 1036 | -9/Materials | Identified exit to Materials 1422 | -9/Materials | Discovered new exit (range 6) 1615 | -9/Materials | Repaired Imp. Aluminum Leg 2585 | -9/Materials | Discovered new exit (range 9) 2595 | -9/Materials | Entered Mines 2617 | -9/Mines | A Derelict revealed a hidden shortcut to a safe place 2624 | -9/Mines | Entered Zion 2712 | -7/Zion | Given A8's code to call for help 2732 | -7/Zion | Learned Factory stockpile data 2742 | -7/Zion | Learned location of Data Miner (-6) 2878 | -7/Zion | Learned Factory emergency access door positions 3367 | -7/Zion | Enhanced Grunt warped into view, answering call for help 3370 | -7/Zion | Enhanced Grunt warped into view, answering call for help 3405 | -7/Zion | Acquired unknown access codes intercepted by a Zionite 3849 | -7/Zion | Opened final containment barrier to the Deep Caves 3882 | -7/Zion | Discovered new exit (range 5) 3885 | -7/Zion | Saw the warning signs outside the Deep Caves entrance 3900 | -7/Zion | Entered Deep Caves 3900 | -7/Deep Caves | Accompanied by 2 allies 3997 | -7/Deep Caves | Z-Facility disabled 4036 | -7/Deep Caves | Attacked by Z-Imprinter 4050 | -7/Deep Caves | Core integrity fell below 50% 4060 | -7/Deep Caves | Core integrity fell below 20% 4061 | -7/Deep Caves | Destroyed by 4W-H4Y(z) with Zionite Laser-S Last Messages --------------- [Achievement: Tourist] [Achievement: Signs Are For Wimps] [Achievement: Adventurer] LOCATION=UNKNOWN GOAL=ESCAPE 03993_ NEW_ZION: Z-Facility proximity alert. 03997_ Z-Facility disabled. 03999_ XT-9PD(o) destroyed. 04002_ Y5-YXK(o) destroyed. Z-Imprinter: GET AWAY FROM HERE! I've worked too hard for our future just to have you ruin everything! 04050_ Imp. Aluminum Leg destroyed. 04055_ Aluminum Leg destroyed. 04057_ Ion Engine destroyed. 04057_ Adv. Weight Redist. System destroyed. 04059_ Barrage Gun destroyed. 04059_ Xenon Bombardment Thruster destroyed. 04059_ Mak. Flight Unit destroyed. 04060_ Xenon Bombardment Thruster destroyed. [Achievement: First Step to Greatness] Map ----- +----------------------------------------------------+ | | | | | | | | | | | | | | | | | | | | | ????????????????????????#????????????????????????? | | ???????????????????????? ??????###############???? | | ???????????????????????# ???#### ##??? | | ???????????????????????# ??## #??? | | ?????????????##???####?# ?## #### | | ?????????????# ??# ?# ## ## | | ???????????? # ## zz## | | ???????????? zz z | | ???????????? I | | ??????????? | | ??????????? z | | ?????????? z"" " "" "" | | ?????????? """"" """""""" | | ?????????? """""""""""""" | | ?????????? """""""""""""" | | ?????????? @ """"""""""" | | ?????????? """"""""""""" | | ?????????? """""????""""" | | ??????????? """""????""""" | | ??????????? """""??????"" | | ???????????? """""?????"=" | | ???????????? """?????" /% | | ???????????? """????? == | | ????????????? ""??????" | | ????????????? "???????? | | ?????????????? ""???????"" = | | ?????????????? "?????????"""%/ | | ???????????????? "?????????? | | ?????????????????? "?????????"" | | ????????????????????? "??????????"" | | ??????????????????????? ?????????????"" | | ??????????????????????????????????????????" | | ???????????????????????????????????????????? | | ??????????????????????????????????????????????? | | ????????????????????????????????????????????????? | | ?????????????????????????????????????????????????? | | ?????????????????????????????????????????????????? | | ?????????????????????????????????????????????????? | | ?????????????????????????????????????????????????? | | ?????????????????????????????????????????????????? | +----------------------------------------------------+ Best States ------------- Heat Dissipation 38 Energy Generation 12 Energy Capacity 265 Matter Stores 300 Matter Capacity 300 Sight Range 16 Terrain Scan Density 10 Jamming Range 14 Additional Mass Support 18 Armor Coverage 150 Weapon Shielding 33 Evasion (%) 50 Item Schematics ----------------- Imp. Ion Engine | -9/Materials | Scanalyzed Robot Schematics ------------------ None Fabricated ------------ Nothing Alien Tech Used ----------------- None Achievements -------------- Adventurer Crack Shot Everything Is Under Control First Step to Greatness Help From High Places Hey, That's Mine! Novice Programmer One Hack Too Far Part-time Mechanic Risk Taker Robot Respite Signs Are For Wimps Tourist Uninvited Guest Challenges ------------ None Game ------ Seed TrapShieldThruster Manual? 0 Play Time 01:23:24 Cumulative 2.7 hours Start 2021.12.01 @ 19:27:31 End 2021.12.01 @ 20:55:11 Sessions 2 Manual Loads 0 Difficulty Rogue Special Mode None Game No. 1 Rogue 1 Adventurer 0 Explorer 0 Win Type - Total 0 Types 0/0/0/0/0/0/0/0/0 Lore% 4 Gallery% 3 Achievement% 5 Wizard Run 0 Options --------- ASCII 0 Keyboard 0 Movement Mouse Keybinds 0 Fullscreen 1 Font 18/SmallcapsGlow Map View 76x50 Tactical HUD 1 Map Filters NONE Filters NONE Steam 0 RUN: 55309db4-5795-45eb-821a-a79e31e45559